bitfinex/quotes_ETHUSD_20240601
["timestamp","ask_amount","ask_price","bid_price","bid_amount"]
[1717282062826,2.61192,3828.7,3828.5,0.09338927]
[1717282063930,2.61192,3828.7,3828.2,1.02224633]
[1717282064395,2.61192,3828.7,3828.3,0.09341985]
[1717282064597,2.61192,3828.7,3828.2,1.02224633]
[1717282064799,2.61192,3828.7,3828.4,0.09340456]
[1717282065001,2.61192,3828.7,3828.2,1.02224633]
[1717282065337,2.61192,3828.7,3828.5,0.09338927]
[1717282065528,2.61192,3828.7,3828.2,0.702]
[1717282065831,2.61192,3828.7,3828.3,0.09341985]
[1717282066132,2.61192,3828.7,3828.2,0.702]
[1717282066514,2.61192,3828.7,3828.3,0.09341985]
[1717282066914,2.61192,3828.7,3828.2,0.702]
[1717282067125,2.3963,3828.6,3827.6,2.4069]
[1717282067336,2.3963,3828.6,3828.3,0.09341985]
[1717282067555,2.3963,3828.6,3827.6,0.702]
[1717282067556,2.61223,3828.2,3827.6,0.702]
[1717282068759,2.61223,3828.2,3827.8,0.702]
[1717282071265,2.61223,3828.2,3827.9,0.702]
[1717282071661,2.61223,3828.2,3827.7,0.702]
[1717282075989,2.3125,3828.1,3827.3,2.4069]
[1717282076180,2.3125,3828.1,3827.4,0.501979]
[1717282076378,2.3125,3828.1,3827.7,0.702]
[1717282076888,2.61223,3828.2,3827.7,0.702]
[1717282078668,2.61223,3828.2,3827.9,0.702]
[1717282080992,2.61223,3828.2,3828.0,0.09354731]
[1717282081159,5.06833151,3828.8,3828.1,0.702]
[1717282081160,2.61196,3828.6,3828.1,0.702]
[1717282081494,2.61196,3828.6,3828.2,0.09351672]
[1717282082162,2.61196,3828.6,3828.5,0.702]
[1717282082471,2.61196,3828.6,3828.5,0.7954213]
[1717282086581,2.61196,3828.6,3828.5,0.79452411]
[1717282087009,2.3125,3829.1,3828.5,0.79452411]
[1717282087210,2.6117,3829.0,3828.9,0.702]
[1717282087730,2.6117,3829.0,3828.9,0.79510086]
[1717282088296,2.6117,3829.0,3828.9,0.09310086]
[1717282088502,2.6117,3829.0,3828.9,0.79510086]
[1717282090610,7.92394,3829.4,3828.9,0.79510086]
[1717282090817,5.61144,3829.4,3829.1,0.702]
[1717282091625,2.61144,3829.4,3829.1,0.702]
[1717282092508,2.61144,3829.4,3828.9,0.702]
[1717282092706,2.61144,3829.4,3829.1,0.702]
[1717282092909,2.61144,3829.4,3828.9,0.702]
[1717282097853,2.61144,3829.4,3828.5,0.497082]
[1717282098061,2.61157,3829.2,3829.0,0.09276228]
[1717282098348,2.61157,3829.2,3828.2,2.3412]
[1717282098349,2.61171,3828.9,3828.2,2.3412]
[1717282098548,2.61171,3828.9,3828.5,0.702]
[1717282098867,5.02502,3828.6,3828.1,0.702]
[1717282099976,2.61211,3828.4,3827.4,3.114649]
[1717282100154,2.61226,3828.1,3827.4,0.501979]
[1717282100334,2.61226,3828.1,3827.7,0.702]
[1717282100530,2.61226,3828.1,3827.2,2.3412]
[1717282100729,2.61226,3828.1,3827.7,0.702]
[1717282101763,2.61239,3827.9,3827.7,0.702]
[1717282106400,2.61264,3827.6,3827.2,2.3412]
[1717282106560,2.61264,3827.6,3827.4,0.702]
[1717282107556,3.1151,3828.0,3826.7,0.40901424]
[1717282107792,2.4131,3827.9,3827.0,0.702]
[1717282107972,3.23144315,3827.9,3827.0,0.702]
[1717282108397,2.4131,3827.8,3826.9,0.702]
[1717282108711,2.4131,3827.8,3826.7,0.40901424]
[1717282108712,2.61305,3827.0,3826.7,0.40901424]
[1717282111304,3.115665,3827.0,3826.7,0.40901424]
[1717282127941,3.115665,3827.0,3826.8,0.09407772]
[1717282128426,3.115665,3827.0,3826.7,0.40901424]
[1717282128634,3.115665,3827.0,3826.9,0.09406241]
[1717282128832,3.115665,3827.0,3826.8,0.09407772]
[1717282129241,3.115665,3827.0,3826.7,0.40901424]
[1717282129540,3.115665,3827.0,3826.9,0.09406241]
[1717282129730,3.115665,3827.0,3826.8,0.09407772]
[1717282129930,3.115665,3827.0,3826.7,0.40901424]
[1717282130241,2.61314,3826.8,3826.7,0.40901424]
[1717282135467,2.61339,3826.5,3826.2,3.0244]
[1717282141636,2.61339,3826.5,3826.2,2.3224]
[1717282141833,2.61339,3826.5,3826.3,0.702]
[1717282142819,2.61339,3826.5,3826.4,0.09413312]
[1717282148500,2.61314,3826.9,3826.4,2.71678643]
[1717282148699,2.61314,3826.9,3826.8,0.702]
[1717282148873,2.61314,3826.9,3826.8,3.0128]
[1717282149308,2.61314,3826.9,3826.8,3.10707299]
[1717282150537,2.61314,3826.9,3826.8,3.0128]
[1717282150841,2.61314,3826.9,3826.8,3.10707299]
[1717282151937,2.61288,3827.2,3826.8,3.41231302]
[1717282152145,2.61288,3827.2,3827.1,0.702]
[1717282152306,2.61288,3827.2,3827.1,0.79611049]
[1717282152716,2.61265,3827.6,3827.2,2.3108]
[1717282152913,2.61265,3827.6,3827.5,0.702]
[1717282153631,2.61265,3827.6,3827.5,0.79597351]
[1717282154234,2.61265,3827.6,3827.5,1.10665086]
[1717282154543,2.61265,3827.6,3827.5,0.79597351]
[1717282164762,2.61265,3827.6,3827.5,0.09397351]
[1717282164922,2.61265,3827.6,3827.3,0.702]
[1717282165255,2.61265,3827.6,3827.4,0.09363328]
[1717282176905,2.3646,3827.9,3827.2,0.702]
[1717282177065,2.6128,3827.3,3827.2,0.702]
[1717282179505,0.497698,3827.8,3826.5,2.3737]
[1717282179659,2.3792,3827.5,3826.2,2.3737]
[1717282179858,2.61328,3826.7,3826.5,0.702]
[1717282180263,2.61328,3826.7,3826.6,0.09078119]
[1717282180658,2.61328,3826.7,3826.2,2.3737]
[1717282180888,2.61346,3826.4,3826.2,2.3737]
[1717282181091,2.61346,3826.4,3826.3,0.702]
[1717282181462,2.61346,3826.4,3826.3,0.79282712]
[1717282183969,2.61346,3826.4,3826.3,0.702]
[1717282184169,2.61346,3826.4,3826.3,0.79282712]
[1717282185469,2.61346,3826.4,3826.3,0.09082712]
[1717282185790,2.61346,3826.4,3826.3,0.702]
[1717282185988,2.61346,3826.4,3826.3,0.79282712]
[1717282191804,2.61346,3826.4,3826.3,0.09082712]
[1717282192104,2.61346,3826.4,3826.3,0.702]
[1717282192467,2.61346,3826.4,3826.3,0.79297865]
[1717282195118,2.61346,3826.4,3826.3,0.09097865]
[1717282195271,2.61346,3826.4,3826.3,0.702]
[1717282195713,2.61346,3826.4,3826.3,0.79314477]
[1717282196080,2.61346,3826.4,3826.3,0.09114477]
[1717282196384,2.61362,3826.1,3826.0,0.702]
[1717282196714,2.61362,3826.1,3826.0,0.79326066]
[1717282200616,2.61362,3826.1,3826.0,0.09126066]
[1717282201108,2.61391,3825.7,3825.2,2.85157382]
[1717282201311,2.61391,3825.7,3825.6,0.702]
[1717282202502,2.61391,3825.7,3825.6,0.79344726]
[1717282203513,2.61391,3825.7,3825.6,0.09144726]
[1717282203721,2.61391,3825.7,3825.2,2.85157382]
[1717282203907,2.6141,3825.4,3825.3,0.09149321]
[1717282204105,2.6141,3825.4,3825.3,0.79349321]
[1717282207001,2.6141,3825.4,3825.3,0.09149321]
[1717282207341,2.6141,3825.4,3825.3,0.702]
[1717282207486,2.6141,3825.4,3825.3,0.79349321]
[1717282212319,2.6141,3825.4,3825.3,0.09149321]
[1717282212631,2.6141,3825.4,3825.3,0.702]
[1717282212924,2.6141,3825.4,3825.3,0.79349321]
[1717282216529,2.6141,3825.4,3825.3,0.09149321]
[1717282216700,2.6141,3825.4,3825.3,0.79349321]
[1717282218407,2.6141,3825.4,3825.3,1.15376991]
[1717282221730,2.61391,3825.7,3825.3,1.15376991]
[1717282222030,2.61391,3825.7,3825.6,0.702]
[1717282222424,2.61391,3825.7,3825.6,0.79355222]
[1717282230369,2.6137,3826.0,3825.7,2.4001]
[1717282230525,2.6137,3826.0,3825.9,0.702]
[1717282230911,2.6137,3826.0,3825.9,0.79358208]
[1717282231820,2.6137,3826.0,3825.9,0.826855]
[1717282235645,2.6135,3826.3,3825.9,0.826855]
[1717282235864,2.6135,3826.3,3826.2,0.702]
[1717282236345,2.6135,3826.3,3826.2,0.82672191]
[1717282236757,2.61329,3826.6,3826.2,0.82672191]
[1717282236960,2.61329,3826.6,3826.4,0.702]
[1717282237124,2.61329,3826.6,3826.5,0.12464713]
[1717282239224,2.61329,3826.6,3826.2,0.702]
[1717282239727,2.61329,3826.6,3826.3,0.12453956]
[1717282239927,2.61329,3826.6,3826.2,0.702]
[1717282240322,2.61329,3826.6,3826.3,0.12453956]
[1717282240723,2.61329,3826.6,3826.2,0.702]
[1717282240950,2.61329,3826.6,3826.3,0.12453956]
[1717282241157,2.61329,3826.6,3826.2,0.702]
[1717282241359,2.61329,3826.6,3826.3,0.12453956]
[1717282241564,2.61329,3826.6,3826.2,0.702]
[1717282241778,2.61329,3826.6,3826.3,0.12453956]
[1717282242059,2.61329,3826.6,3826.2,0.702]
[1717282242264,2.61329,3826.6,3826.4,0.12452338]
[1717282242464,2.61329,3826.6,3826.3,0.12453956]
[1717282242761,2.61329,3826.6,3826.4,0.12452338]
[1717282242969,2.61329,3826.6,3826.2,0.702]
[1717282243261,2.61329,3826.6,3826.3,0.12453956]
[1717282243658,2.61329,3826.6,3826.2,0.702]
[1717282243872,2.61329,3826.6,3826.4,0.12452338]
[1717282244033,2.61329,3826.6,3826.3,0.12453956]
[1717282244227,2.61329,3826.6,3826.2,0.702]
[1717282244444,2.61329,3826.6,3826.4,0.12452338]
[1717282244645,2.61329,3826.6,3826.3,0.12453956]
[1717282244843,2.61329,3826.6,3826.2,0.702]
[1717282245133,2.61329,3826.6,3826.3,0.12453956]
[1717282245335,2.61329,3826.6,3826.2,0.702]
[1717282245531,2.61329,3826.6,3826.3,0.12453956]
[1717282245736,2.61329,3826.6,3826.2,0.702]
[1717282246034,2.61329,3826.6,3826.3,0.12453956]
[1717282246433,2.61329,3826.6,3826.2,0.702]
[1717282246672,2.61329,3826.6,3826.4,0.12452338]
[1717282246873,2.61329,3826.6,3826.3,0.12453956]
[1717282247177,2.61329,3826.6,3826.2,0.702]
[1717282247348,2.61329,3826.6,3826.4,0.12452338]
[1717282247673,2.61329,3826.6,3826.2,0.702]
[1717282248171,2.61329,3826.6,3826.4,0.702]
[1717282250470,2.61329,3826.6,3826.2,0.702]
[1717282250867,2.61329,3826.6,3826.3,0.12453956]
[1717282251272,2.61329,3826.6,3826.2,0.702]
[1717282251462,2.61329,3826.6,3826.4,0.12452338]
[1717282251779,2.61329,3826.6,3826.2,0.702]
[1717282252273,2.61329,3826.6,3826.4,0.702]
[1717282253474,2.61329,3826.6,3826.2,0.702]
[1717282253863,2.61329,3826.6,3826.3,0.12453956]
[1717282254264,2.61329,3826.6,3826.2,0.702]
[1717282254475,2.61329,3826.6,3826.4,0.12454961]
[1717282254774,2.61329,3826.6,3826.3,0.12456579]
[1717282254977,2.61329,3826.6,3826.2,0.702]
[1717282255174,2.61329,3826.6,3826.4,0.12454961]
[1717282255426,2.61329,3826.6,3826.3,0.12456579]
[1717282255674,2.61329,3826.6,3826.4,0.12454961]
[1717282255975,2.61329,3826.6,3826.2,0.702]
[1717282256360,2.61329,3826.6,3826.3,0.12456579]
[1717282256773,2.61329,3826.6,3826.2,0.702]
[1717282256980,2.61329,3826.6,3826.4,0.12454961]
[1717282257146,2.61329,3826.6,3826.3,0.12456579]
[1717282257482,2.61329,3826.6,3826.4,0.12454961]
[1717282257859,2.61329,3826.6,3826.2,0.702]
[1717282258060,2.61329,3826.6,3826.5,0.12453343]
[1717282258274,2.61329,3826.6,3826.2,0.702]
[1717282258476,2.61329,3826.6,3826.5,0.12453343]
[1717282258683,2.61329,3826.6,3826.2,0.702]
[1717282258870,2.61329,3826.6,3826.5,0.12453343]
[1717282259046,2.61329,3826.6,3826.2,0.702]
[1717282259253,2.61329,3826.6,3826.5,0.12453343]
[1717282259452,2.61329,3826.6,3826.2,0.702]
[1717282259677,2.61329,3826.6,3826.5,0.12453343]
[1717282259867,2.61329,3826.6,3826.2,0.702]
[1717282260375,2.61329,3826.6,3826.3,0.12456579]
[1717282260755,2.61329,3826.6,3826.2,0.702]
[1717282260973,2.61329,3826.6,3826.4,0.12454961]
[1717282261177,2.61329,3826.6,3826.3,0.12456579]
[1717282261390,2.61329,3826.6,3826.2,0.702]
[1717282261568,2.61329,3826.6,3826.4,0.12454961]
[1717282261870,2.61329,3826.6,3826.2,0.702]
[1717282262084,2.61329,3826.6,3826.5,0.12453343]
[1717282262283,2.61329,3826.6,3826.2,0.702]
[1717282262490,2.61329,3826.6,3826.5,0.12453343]
[1717282262692,2.61329,3826.6,3826.2,0.702]
[1717282262999,2.61309,3826.9,3826.5,3.1138]
[1717282263295,2.61309,3826.9,3826.8,0.702]
[1717282263803,2.61309,3826.9,3826.8,0.8264849]
[1717282270700,2.61284,3827.3,3826.8,0.8264849]
[1717282270863,2.61284,3827.3,3827.1,0.702]
[1717282273167,2.61284,3827.3,3827.2,0.12398595]
[1717282278001,2.6126,3827.7,3827.2,0.12398595]
[1717282278162,2.6126,3827.7,3827.4,0.702]
[1717282281302,2.6126,3827.7,3827.6,0.702]
[1717282281891,2.6126,3827.7,3827.6,0.82583966]
[1717282282707,2.6126,3827.7,3827.6,0.12383966]
[1717282282912,2.6126,3827.7,3827.5,0.702]
[1717282283122,2.6126,3827.7,3827.6,0.12383966]
[1717282295318,2.61218,3828.3,3827.6,0.12383966]
[1717282295525,2.61218,3828.3,3828.2,0.702]
[1717282295724,2.61218,3828.3,3827.7,0.32213397]
[1717282295725,2.61218,3828.3,3828.0,0.702]
[1717282295927,2.61218,3828.3,3828.2,0.12254264]
[1717282296452,2.61218,3828.3,3828.0,0.702]
[1717282296745,2.61218,3828.3,3828.1,0.12255881]
[1717282299726,2.3457,3828.2,3828.1,0.12255881]
[1717282299926,2.3457,3828.2,3827.7,0.702]
[1717282300105,4.95789,3828.2,3828.1,0.12255881]
[1717282300301,2.61246,3827.8,3827.7,0.702]
[1717282305478,2.61286,3827.3,3826.5,0.28242711]
[1717282305621,2.61286,3827.3,3826.8,0.702]
[1717282306253,2.61286,3827.3,3827.0,0.702]
[1717282307559,2.61286,3827.3,3827.1,0.11069461]
[1717282307725,2.61286,3827.3,3827.0,0.702]
[1717282307928,2.61286,3827.3,3827.2,0.11067844]
[1717282308133,2.61286,3827.3,3827.0,0.702]
[1717282308545,2.61286,3827.3,3827.1,0.11069461]
[1717282308759,2.61286,3827.3,3827.0,0.702]
[1717282309055,2.61286,3827.3,3827.2,0.11067844]
[1717282309218,2.61286,3827.3,3827.1,0.11069461]
[1717282309418,2.61286,3827.3,3827.0,0.702]
[1717282309619,2.61286,3827.3,3827.2,0.11067844]
[1717282309848,2.61286,3827.3,3827.1,0.11069461]
[1717282310051,2.61286,3827.3,3827.0,0.702]
[1717282310415,2.61286,3827.3,3827.1,0.11069461]
[1717282310848,2.61286,3827.3,3827.0,0.702]
[1717282311035,2.61255,3827.7,3827.3,2.4564]
[1717282311235,2.61255,3827.7,3827.5,0.702]
[1717282311634,2.61255,3827.7,3827.6,0.11061375]
[1717282311853,2.61255,3827.7,3827.5,0.702]
[1717282312054,2.61255,3827.7,3827.6,0.11061375]
[1717282312562,2.61255,3827.7,3827.3,0.702]
[1717282312763,2.61255,3827.7,3827.6,0.11061375]
[1717282312939,2.61255,3827.7,3827.3,0.702]
[1717282313141,2.61255,3827.7,3827.6,0.11051803]
[1717282313342,2.61255,3827.7,3827.3,0.702]
[1717282313559,2.61255,3827.7,3827.6,0.11051803]
[1717282313763,5.214505,3827.7,3827.0,0.702]
[1717282313960,5.214505,3827.7,3827.6,0.11051803]
[1717282314171,5.214505,3827.7,3827.0,0.702]
[1717282314561,2.61274,3827.4,3827.1,0.11068011]
[1717282314873,2.61274,3827.4,3827.0,0.702]
[1717282315076,2.61274,3827.4,3827.2,0.11066393]
[1717282315382,2.61274,3827.4,3827.3,0.11064776]
[1717282315581,2.61274,3827.4,3827.0,0.702]
[1717282315978,2.61274,3827.4,3827.1,0.11068011]
[1717282316285,2.61274,3827.4,3827.0,0.702]
[1717282316467,2.61274,3827.4,3827.2,0.11066393]
[1717282316663,0.261274,3827.3,3827.2,0.11066393]
[1717282316877,2.61298,3827.1,3826.6,0.702]
[1717282317183,2.61298,3827.1,3826.7,0.11100296]
[1717282318674,2.61298,3827.1,3826.8,0.702]
[1717282319070,2.61298,3827.1,3826.9,0.1109706]
[1717282319365,2.61298,3827.1,3826.8,0.702]
[1717282319575,2.61298,3827.1,3827.0,0.11095443]
[1717282319879,2.61298,3827.1,3826.8,0.702]
[1717282320066,2.61298,3827.1,3827.0,0.11095443]
[1717282320373,2.61274,3827.4,3827.0,0.81295443]
[1717282321346,2.61287,3827.2,3827.0,0.81295443]
[1717282327256,4.91774,3827.6,3827.0,0.81295443]
[1717282327584,4.91774,3827.6,3827.2,0.702]
[1717282332794,4.91774,3827.6,3827.3,0.1108653]
[1717282332960,4.91774,3827.6,3827.2,0.702]
[1717282333154,4.91774,3827.6,3827.4,0.11084913]
[1717282333355,4.91774,3827.6,3827.2,0.702]
[1717282333575,4.91774,3827.6,3827.5,0.11083296]
[1717282333776,8.409514,3827.6,3826.5,2.61335]
[1717282334089,4.9177,3827.6,3827.5,0.11083296]
[1717282334259,4.9177,3827.6,3827.0,0.702]
[1717282334260,2.61279,3827.4,3827.0,0.702]
[1717282334609,2.61279,3827.4,3827.1,0.11086284]
[1717282334958,3.0,3828.1,3826.4,2.3257]
[1717282334959,2.61294,3827.2,3826.4,2.3257]
[1717282335661,2.61294,3827.2,3826.8,0.702]
[1717282335854,2.61306,3827.0,3826.7,0.702]
[1717282337700,2.61306,3827.0,3826.8,0.11091136]
[1717282338059,2.61306,3827.0,3826.7,0.702]
[1717282338295,2.61306,3827.0,3826.9,0.11089519]
[1717282338458,2.61306,3827.0,3826.8,0.11091136]
[1717282338658,2.61306,3827.0,3826.7,0.702]
[1717282338859,2.61306,3827.0,3826.9,0.11089519]
[1717282339205,2.61306,3827.0,3826.7,0.702]
[1717282339502,2.61306,3827.0,3826.9,0.11089519]
[1717282339811,2.61306,3827.0,3826.7,0.702]
[1717282339978,2.61306,3827.0,3826.9,0.11089519]
[1717282340295,2.61306,3827.0,3826.7,0.702]
[1717282340699,2.61306,3827.0,3826.8,0.11091136]
[1717282341077,2.61306,3827.0,3826.7,0.702]
[1717282341277,2.61306,3827.0,3826.9,0.11089519]
[1717282341472,2.61306,3827.0,3826.8,0.11091136]
[1717282341675,2.61306,3827.0,3826.7,0.702]
[1717282341874,2.61306,3827.0,3826.8,0.1110042]
[1717282342203,2.61306,3827.0,3826.5,0.702]
[1717282342366,2.61306,3827.0,3826.9,0.11098802]
[1717282342566,2.61306,3827.0,3826.5,0.702]
[1717282342765,2.61306,3827.0,3826.9,0.11098802]
[1717282343032,2.61306,3827.0,3826.5,0.702]
[1717282343378,2.61306,3827.0,3826.7,0.702]
[1717282343783,2.61306,3827.0,3826.8,0.1110042]
[1717282344118,2.61264,3827.6,3826.0,2.3235]
[1717282344119,2.61331,3826.6,3826.0,2.3235]
[1717282344572,2.61331,3826.6,3826.4,0.702]
[1717282347404,2.61349,3826.3,3825.8,2.64286522]
[1717282347612,2.61349,3826.3,3826.0,0.702]
[1717282352540,2.61349,3826.3,3826.1,0.11159624]
[1717282360731,2.61349,3826.3,3826.0,0.702]
[1717282361129,2.61349,3826.3,3826.1,0.11161656]
[1717282364611,2.61378,3825.9,3825.8,0.702]
[1717282364820,2.614,3825.6,3825.0,2.4771]
[1717282365017,2.614,3825.6,3825.3,0.702]
[1717282365341,2.614,3825.6,3825.4,0.11173566]
[1717282365815,2.614,3825.6,3825.5,0.702]
[1717282366016,2.614,3825.6,3825.5,0.10842696]
[1717282366219,2.614,3825.6,3825.5,0.702]
[1717282366438,2.614,3825.6,3825.5,0.81042696]
[1717282377138,2.614,3825.6,3825.5,0.10842696]
[1717282377340,2.614,3825.6,3825.4,0.702]
[1717282377579,2.614,3825.6,3825.5,0.10835751]
[1717282381064,2.61376,3826.0,3825.5,2.57605751]
[1717282381313,2.61376,3826.0,3825.7,0.702]
[1717282381667,2.61376,3826.0,3825.8,0.10829448]
[1717282382172,2.61376,3826.0,3825.9,0.1082783]
[1717282382373,2.61376,3826.0,3825.7,0.702]
[1717282382574,2.61376,3826.0,3825.8,0.10829448]
[1717282382773,3.125076,3826.0,3825.7,0.702]
[1717282382964,3.125076,3826.0,3825.2,2.4677]
[1717282382965,2.61396,3825.7,3825.5,0.702]
[1717282385194,2.61396,3825.7,3825.0,2.4677]
[1717282385384,2.61396,3825.7,3825.4,0.702]
[1717282385982,2.61396,3825.7,3825.6,0.702]
[1717282397619,2.61396,3825.7,3825.6,0.81032109]
[1717282397823,2.61396,3825.7,3825.6,0.10832109]
[1717282398028,2.61396,3825.7,3825.4,0.702]
[1717282398239,2.61396,3825.7,3825.6,0.10832109]
[1717282398520,2.61396,3825.7,3825.4,0.702]
[1717282398701,2.61396,3825.7,3825.6,0.10829215]
[1717282398901,2.61396,3825.7,3825.5,0.10830834]
[1717282399102,2.61396,3825.7,3825.6,0.10829215]
[1717282399523,2.61396,3825.7,3825.4,0.702]
[1717282399730,2.61396,3825.7,3825.6,0.10829215]
[1717282400215,2.61396,3825.7,3825.4,0.702]
[1717282400410,2.61396,3825.7,3825.6,0.10829215]
[1717282400616,2.61396,3825.7,3825.4,0.702]
[1717282400830,2.61396,3825.7,3825.5,0.10830834]
[1717282401202,2.61417,3825.3,3824.6,2.4943]
[1717282401525,2.61417,3825.3,3825.0,0.702]
[1717282402297,2.61417,3825.3,3825.2,0.702]
[1717282405330,2.61417,3825.3,3825.0,0.702]
[1717282406274,2.61417,3825.3,3825.2,0.702]
[1717282412786,2.61417,3825.3,3825.2,0.81048422]
[1717282415893,2.61417,3825.3,3825.2,0.10848422]
[1717282416590,2.61417,3825.3,3825.1,0.702]
[1717282417092,2.61442,3825.0,3824.9,0.702]
[1717282417469,2.61442,3825.0,3824.9,0.8105328]
[1717282426503,2.61418,3825.3,3824.9,0.8105328]
[1717282426706,2.61418,3825.3,3825.2,0.702]
[1717282427009,2.61418,3825.3,3825.2,0.81050156]
[1717282429604,2.61418,3825.3,3825.2,0.702]
[1717282430318,2.61418,3825.3,3825.0,0.702]
[1717282430750,2.61418,3825.3,3825.2,0.702]
[1717282431422,2.61418,3825.3,3825.2,0.81050156]
[1717282434516,2.61418,3825.3,3825.2,0.10850156]
[1717282434923,2.61418,3825.3,3825.0,0.702]
[1717282435086,2.61418,3825.3,3825.2,0.10851606]
[1717282435286,2.61418,3825.3,3825.1,0.10853225]
[1717282435526,2.61418,3825.3,3825.2,0.702]
[1717282435928,2.61418,3825.3,3825.2,0.81051606]
[1717282438551,2.61418,3825.3,3825.2,0.10851606]
[1717282438852,2.61418,3825.3,3825.0,0.702]
[1717282439153,2.61418,3825.3,3825.1,0.10853225]
[1717282446073,2.4207,3825.5,3824.5,0.510289]
[1717282446285,2.61413,3825.4,3825.0,0.702]
[1717282446493,2.61417,3825.3,3825.1,0.10853801]
[1717282450708,2.61451,3824.8,3824.7,0.702]
[1717282451297,2.61451,3824.8,3824.7,0.81068381]
[1717282459403,2.61422,3825.3,3824.7,1.14056219]
[1717282459601,2.61422,3825.3,3825.2,0.702]
[1717282459900,2.61422,3825.3,3825.2,0.81065494]
[1717282463098,10.67514,3825.3,3825.2,0.10865494]
[1717282463302,10.67514,3825.3,3824.0,3.0778]
[1717282463303,2.6147,3824.6,3824.0,3.0778]
[1717282463521,2.4467,3824.9,3824.1,0.10140467]
[1717282463738,2.61485,3824.4,3823.8,3.0778]
[1717282464021,2.61485,3824.4,3824.2,0.10138847]
[1717282464217,2.4467,3824.5,3823.6,1.20557662]
[1717282464218,2.61504,3824.1,3823.6,1.20557662]
[1717282464427,2.61504,3824.1,3823.8,0.702]
[1717282464723,2.61504,3824.1,3823.9,0.10165919]
[1717282468287,2.61504,3824.1,3824.0,0.702]
[1717282468482,2.61504,3824.1,3824.0,0.80364299]
[1717282473341,5.06833151,3825.3,3824.0,1.12158729]
[1717282473501,2.4467,3825.8,3825.1,0.702]
[1717282473715,2.61424,3825.2,3825.1,0.702]
[1717282476532,2.61424,3825.2,3824.9,0.702]
[1717282476934,2.61424,3825.2,3824.2,2.3758]
[1717282477090,2.61424,3825.2,3824.9,0.702]
[1717282477838,2.61424,3825.2,3824.2,2.3758]
[1717282478141,2.61424,3825.2,3824.9,0.702]
[1717282480435,2.61424,3825.2,3825.0,0.10170028]
[1717282481702,2.61424,3825.2,3824.9,0.702]
[1717282481904,2.61424,3825.2,3825.0,0.10170028]
[1717282491566,2.61424,3825.2,3825.1,0.702]
[1717282491922,2.61424,3825.2,3825.1,0.80307158]
[1717282492259,2.61424,3825.2,3825.1,0.10107158]
[1717282492918,2.61424,3825.2,3824.9,0.702]
[1717282493119,2.61424,3825.2,3825.0,0.10109354]
[1717282499130,2.3763,3825.1,3825.0,0.10109354]
[1717282499325,2.61441,3825.0,3824.6,0.702]
[1717282499527,2.61441,3825.0,3824.7,0.10123153]
[1717282499759,2.61441,3825.0,3824.8,0.702]
[1717282500257,2.61441,3825.0,3824.9,0.10119914]
[1717282500439,2.61441,3825.0,3824.8,0.702]
[1717282500658,2.61441,3825.0,3824.9,0.10119049]
[1717282500890,2.61441,3825.0,3824.8,0.702]
[1717282501081,2.61441,3825.0,3824.9,0.1011876]
[1717282501283,2.61441,3825.0,3824.2,2.4264]
[1717282501284,3.113481,3825.0,3824.2,2.4264]
[1717282501447,3.113481,3825.0,3823.5,0.82766713]
[1717282501448,2.3763,3824.6,3824.3,0.10128765]
[1717282501658,2.61472,3824.5,3824.0,0.702]
[1717282501872,2.61472,3824.5,3824.2,0.702]
[1717282502190,2.61472,3824.5,3824.4,0.702]
[1717282502553,2.61472,3824.5,3824.4,0.80327434]
[1717282504455,2.6145,3824.9,3824.4,0.80327434]
[1717282504787,2.6145,3824.9,3824.7,0.702]
[1717282506865,2.6145,3824.9,3824.8,0.10123553]
[1717282507054,2.6145,3824.9,3824.7,0.702]
[1717282507246,2.6145,3824.9,3824.8,0.10128172]
[1717282507446,2.6145,3824.9,3824.7,1.01484]
[1717282507650,2.6145,3824.9,3824.8,0.10128172]
[1717282507851,2.6145,3824.9,3824.7,1.01484]
[1717282508050,2.6145,3824.9,3824.8,0.10128172]
[1717282508293,2.6145,3824.9,3824.7,1.01484]
[1717282508447,2.6145,3824.9,3824.8,0.10128172]
[1717282508652,2.6145,3824.9,3824.7,1.01484]
[1717282508879,2.6145,3824.9,3824.8,0.10128172]
[1717282509082,2.6145,3824.9,3824.7,1.01484]
[1717282509268,2.6145,3824.9,3824.8,0.10128172]
[1717282509467,2.6145,3824.9,3824.7,1.01484]
[1717282509793,2.6145,3824.9,3824.8,0.10128172]
[1717282510170,2.6145,3824.9,3824.7,1.01484]
[1717282510373,2.6145,3824.9,3824.8,0.10128172]
[1717282510689,2.6145,3824.9,3824.7,1.01484]
[1717282510996,2.6145,3824.9,3824.8,0.10128172]
[1717282511289,2.6145,3824.9,3824.7,1.01484]
[1717282511491,5.77033151,3825.9,3824.8,0.44540572]
[1717282511703,2.3763,3826.3,3825.8,0.702]
[1717282511704,2.61359,3826.2,3825.8,0.702]
[1717282511993,2.61359,3826.2,3824.8,0.344124]
[1717282511994,5.36695,3827.1,3824.8,0.344124]
[1717282511995,5.06833151,3827.5,3826.1,0.702]
[1717282512197,0.56509636,3827.4,3826.8,0.702]
[1717282512399,0.56507967,3827.5,3826.8,0.702]
[1717282512561,0.56507967,3827.5,3826.6,0.702]
[1717282512758,0.38796897,3827.4,3826.7,0.10093669]
[1717282513006,2.61308,3826.9,3826.7,0.10093669]
[1717282513296,2.61308,3826.9,3826.6,0.702]
[1717282513483,2.61308,3826.9,3826.8,0.10092052]
[1717282513684,2.61335,3826.5,3826.4,0.702]
[1717282514062,2.61335,3826.5,3824.5,13.02502516]